bitfinex/quotes_ETHUSD_20260107
["timestamp","ask_amount","ask_price","bid_price","bid_amount"]
[1767828325637,0.824,3177.8,3176.2,0.03148416]
[1767828326009,2.03887476,3177.7,3176.2,0.03148416]
[1767828326214,2.03887476,3177.7,3175.2,9.87104796]
[1767828326215,2.03887476,3177.7,3174.9,2.07013506]
[1767828326418,2.03887476,3177.3,3174.4,2.07013506]
[1767828326661,2.03887476,3176.9,3174.2,3.15036049]
[1767828326812,2.03887476,3176.7,3174.5,3.15009642]
[1767828327146,2.03887476,3176.5,3174.0,6.30114123]
[1767828327345,12.59207956,3176.6,3174.1,0.63011412]
[1767828327346,2.03887476,3176.3,3174.1,0.63011412]
[1767828327518,2.03887476,3176.1,3174.1,0.63011412]
[1767828328116,8.33610396,3176.0,3174.2,6.3008002]
[1767828328322,8.33610396,3176.0,3174.3,0.031503]
[1767828329323,5.18748936,3176.0,3174.3,0.031503]
[1767828329635,8.33610396,3176.0,3174.4,0.94827033]
[1767828329844,8.33610396,3176.0,3174.5,0.03150102]
[1767828330006,6.2972292,3176.0,3174.5,0.03150102]
[1767828331943,6.29703094,3176.1,3174.6,3.15000315]
[1767828332441,6.29703094,3176.1,3174.6,6.3000063]
[1767828332620,6.29703094,3176.1,3174.7,0.63000063]
[1767828332938,3.14851547,3176.1,3174.7,0.63000063]
[1767828333140,3.1481269,3176.5,3174.8,2.16678858]
[1767828333315,0.824,3176.4,3174.8,2.16678858]
[1767828333515,2.87512079,3176.4,3174.7,0.63000063]
[1767828333706,2.87512079,3176.4,3174.8,0.69300069]
[1767828333911,9.44495166,3176.3,3174.4,6.30040322]
[1767828334213,6.29663444,3176.3,3174.4,11.61739341]
[1767828334730,6.29663444,3176.3,3174.4,8.4671918]
[1767828335443,9.44495166,3176.3,3174.4,8.4671918]
[1767828336145,0.824,3176.2,3174.4,8.4671918]
[1767828336314,0.824,3176.2,3174.5,0.84671918]
[1767828336509,2.87512079,3176.2,3174.5,0.84671918]
[1767828336745,2.05112079,3176.1,3174.5,0.84671918]
[1767828336958,2.05112079,3176.1,3173.9,2.16678858]
[1767828337268,2.05112079,3176.1,3174.0,3.15052007]
[1767828337549,2.05112079,3175.9,3173.9,5.31747948]
[1767828337913,2.05112079,3175.7,3173.9,3.1506909]
[1767828338114,2.05112079,3175.5,3173.9,6.93154647]
[1767828338523,2.05112079,3175.5,3173.9,3.7808486]
[1767828340016,6.29841908,3175.4,3173.9,3.7808486]
[1767828340749,2.05112079,3175.3,3173.0,2.16678858]
[1767828341042,2.05112079,3175.3,3173.5,3.15108677]
[1767828341345,2.05112079,3175.3,3173.7,3.1508327]
[1767828341851,2.05112079,3175.3,3173.5,3.15106905]
[1767828342054,2.05112079,3175.3,3174.2,0.001]
[1767828342264,11.49934452,3175.2,3174.2,0.001]
[1767828342556,0.824,3175.1,3174.2,0.001]
[1767828342858,2.87512079,3175.1,3174.2,0.001]
[1767828344162,0.824,3175.0,3174.2,0.001]
[1767828344472,0.824,3174.9,3174.2,0.001]
[1767828345739,9.17454096,3174.9,3172.9,2.16678858]
[1767828345961,12.32425563,3174.9,3173.2,3.15135637]
[1767828346153,2.05112079,3174.8,3173.0,2.16678858]
[1767828346348,2.05112079,3174.8,3173.0,5.31829688]
[1767828346554,2.05112079,3174.6,3173.0,2.16678858]
[1767828346748,0.825,3174.5,3173.0,2.16678858]
[1767828347059,2.05112079,3174.4,3172.2,2.16678858]
[1767828347433,2.05112079,3174.4,3172.9,3.15161717]
[1767828347635,6.3006017,3174.3,3172.4,2.16778858]
[1767828348259,2.05112079,3174.2,3172.4,2.16778858]
[1767828348950,2.05112079,3174.0,3172.4,2.16778858]
[1767828349266,2.05112079,3174.0,3172.4,0.001]
[1767828349650,2.05112079,3173.8,3172.4,0.001]
[1767828351456,2.05112079,3173.7,3172.4,0.001]
[1767828351654,2.05112079,3173.5,3172.4,0.001]
[1767828351858,2.05112079,3173.3,3172.4,0.001]
[1767828352059,2.05112079,3173.2,3172.4,0.001]
[1767828352256,0.825,3173.1,3172.4,0.001]
[1767828352568,0.825,3173.0,3172.4,0.001]
[1767828353143,2.05112079,3173.2,3172.4,0.001]
[1767828353372,0.825,3173.1,3172.4,0.001]
[1767828353938,0.825,3173.0,3172.4,0.001]
[1767828354145,0.825,3173.0,3171.5,6.30616426]
[1767828354349,0.825,3173.0,3172.7,0.001]
[1767828354550,0.825,3173.0,3171.5,8.47295284]
[1767828354751,6.30298446,3173.1,3171.5,8.47295284]
[1767828354984,0.825,3173.0,3171.6,0.84729528]
[1767828355142,6.30298446,3173.1,3171.6,0.84729528]
[1767828355335,0.825,3173.0,3171.6,0.84729528]
[1767828355541,6.30338176,3172.9,3171.7,3.15288331]
[1767828355740,3.15149223,3173.1,3171.8,2.16678858]
[1767828355966,0.825,3173.0,3171.9,0.84725552]
[1767828356675,2.05112079,3174.0,3172.0,2.16678858]
[1767828356873,0.825,3173.9,3172.0,2.16678858]
[1767828357090,2.05112079,3173.8,3172.0,0.03152585]
[1767828357246,2.05112079,3173.6,3171.9,0.84725552]
[1767828357646,6.30219,3173.5,3172.0,3.18401655]
[1767828357847,2.87612079,3173.4,3171.9,0.84725552]
[1767828358050,2.05112079,3173.3,3171.8,3.15272852]
[1767828358244,2.05112079,3173.3,3171.6,2.16678858]
[1767828358444,2.05112079,3173.3,3171.2,2.16678858]
[1767828358666,2.05112079,3173.3,3170.1,2.16678858]
[1767828358872,2.05112079,3173.3,3170.9,3.15360542]
[1767828359174,2.05112079,3173.3,3171.0,0.5320394]
[1767828359671,2.05112079,3172.8,3170.8,2.19832636]
[1767828359879,0.825,3172.7,3171.0,0.03153579]
[1767828360273,2.05112079,3172.8,3171.0,0.03153579]
[1767828360579,0.825,3172.6,3170.9,0.03153678]
[1767828360775,2.05112079,3172.8,3170.9,0.03153678]
[1767828360776,0.825,3172.5,3171.0,0.21983254]
[1767828362174,9.45656283,3172.4,3171.0,3.37340361]
[1767828362744,2.03487336,3172.3,3171.0,0.21983254]
[1767828363154,2.03487336,3172.3,3170.4,2.10659703]
[1767828363355,2.03487336,3172.1,3170.4,0.03154176]
[1767828363680,2.85987336,3172.0,3170.5,3.15403785]
[1767828363977,2.85987336,3172.0,3170.4,3.15416611]
[1767828364148,6.30536902,3171.9,3170.3,6.30853985]
[1767828364477,0.825,3171.8,3170.5,2.07505527]
[1767828366077,0.825,3171.8,3171.3,0.001]
[1767828366666,3.97783257,3171.8,3171.3,0.001]
[1767828366856,0.825,3171.8,3171.3,0.001]
[1767828367400,3.97779214,3171.8,3171.3,0.001]
[1767828367893,3.15279214,3171.8,3171.3,0.001]
[1767828368191,2.85987336,3171.7,3170.0,3.15455081]
[1767828368350,9.45924639,3171.5,3169.8,3.15475204]
[1767828368556,3.15308213,3171.5,3169.9,2.10657584]
[1767828368752,3.15308213,3171.5,3170.1,2.07505527]
[1767828368951,6.30616426,3171.5,3170.1,2.07505527]
[1767828369163,3.15308213,3171.5,3170.1,2.07505527]
[1767828369363,3.15308213,3171.5,3170.2,0.03153317]
[1767828369782,6.30616426,3171.5,3170.2,0.03153317]
[1767828369980,6.30616426,3171.5,3170.3,2.20060852]
[1767828369981,0.825,3171.4,3170.3,2.20060852]
[1767828370285,0.825,3171.4,3170.4,0.03153117]
[1767828370488,3.97822078,3171.4,3170.5,3.15407664]
[1767828370885,3.97822078,3171.4,3170.4,3.18568978]
[1767828371279,0.825,3171.4,3170.4,3.18568978]
[1767828371483,3.97818159,3171.4,3170.5,0.53862983]
[1767828371652,3.97818159,3171.4,3170.6,0.03153977]
[1767828371859,3.97818159,3171.4,3170.5,0.53862983]
[1767828373073,3.97818159,3171.4,3170.4,3.15415861]
[1767828373400,7.13136318,3171.4,3170.3,3.39641598]
[1767828374098,7.13136318,3171.4,3170.4,3.15415045]
[1767828374489,3.97818159,3171.4,3170.4,3.15415045]
[1767828374783,7.13136318,3171.4,3170.4,3.15415045]
[1767828374966,7.13136318,3171.4,3170.4,0.65507073]
[1767828376660,2.07321626,3171.3,3170.2,0.03154275]
[1767828376865,2.07321626,3171.3,3169.8,5.14470999]
[1767828377082,2.07321626,3171.1,3169.8,3.15476031]
[1767828377297,2.07321626,3171.1,3169.7,3.15483197]
[1767828377591,2.07321626,3171.0,3169.6,3.15492736]
[1767828377764,0.826,3170.9,3169.7,3.15485578]
[1767828377967,2.89921626,3170.9,3169.6,3.18648655]
[1767828378189,2.89921626,3170.9,3169.7,3.1548626]
[1767828378494,3.18913789,3170.9,3169.7,3.78901025]
[1767828378798,3.18913789,3170.9,3169.7,0.63414765]
[1767828378979,3.18913789,3170.9,3169.6,3.15497155]
[1767828379174,3.15377822,3170.8,3169.5,6.31014354]
[1767828379373,3.15377822,3170.8,3169.5,8.30009322]
[1767828379692,6.30755644,3170.8,3169.5,8.30009322]
[1767828379898,3.15377822,3170.8,3169.5,8.30009322]
[1767828380094,3.15377822,3170.8,3169.6,0.83000932]
[1767828380502,6.30755644,3170.8,3169.6,0.83000932]
[1767828381587,6.30755644,3170.8,3169.4,3.15510833]
[1767828381588,2.07321626,3170.7,3169.4,3.15510833]
[1767828382097,2.07321626,3170.7,3169.1,2.02148854]
[1767828382299,2.07321626,3170.7,3169.5,3.15497343]
[1767828382490,2.07321626,3170.7,3169.6,3.18646299]
[1767828382689,2.07321626,3170.5,3169.6,3.18646299]
[1767828382886,0.826,3170.4,3169.6,3.18646299]
[1767828383089,6.48209695,3171.5,3169.6,3.18646299]
[1767828383090,5.22693811,3170.9,3169.6,3.18646299]
[1767828383284,8.38065996,3170.9,3169.6,6.34143522]
[1767828383597,2.07321626,3171.3,3169.6,1.98994968]
[1767828383797,2.07321626,3171.1,3169.7,0.23054369]
[1767828384007,2.07321626,3171.1,3169.4,0.03155171]
[1767828385777,2.07321626,3170.9,3169.5,6.31014354]
[1767828386179,2.07321626,3170.9,3169.4,6.31032315]
[1767828386376,2.07321626,3170.9,3169.5,0.02886026]
[1767828386708,2.07321626,3170.9,3169.2,3.15529392]
[1767828386876,12.61431724,3171.0,3168.9,1.98994968]
[1767828386877,2.07321626,3170.7,3168.9,1.98994968]
[1767828387078,2.07321626,3170.5,3168.9,1.98994968]
[1767828387385,2.07321626,3170.5,3169.4,3.15516452]
[1767828388097,2.07321626,3170.3,3168.6,1.98994968]
[1767828388608,2.07321626,3170.3,3168.7,0.0288706]
[1767828388912,2.07321626,3170.3,3168.8,2.19183171]
[1767828389119,2.07321626,3170.3,3168.9,0.02886877]
[1767828389285,2.07321626,3170.3,3168.9,2.01881845]
[1767828389609,2.07321626,3170.3,3168.3,11.45867604]
[1767828389906,2.07321626,3170.3,3169.7,0.001]
[1767828390108,8.3821655,3170.1,3169.7,0.001]
[1767828390293,2.07321626,3169.9,3168.5,6.31213506]
[1767828390617,2.07321626,3169.9,3168.5,9.46820259]
[1767828390814,2.07321626,3169.9,3168.5,6.31213506]
[1767828391018,2.07321626,3169.9,3168.6,0.02905733]
[1767828391316,2.07321626,3170.3,3168.8,1.98994968]
[1767828391472,0.826,3170.2,3168.9,2.01900425]
[1767828392110,0.826,3170.2,3169.0,6.31113916]
[1767828392305,0.826,3170.2,3169.1,0.02905966]
[1767828392306,3.98039535,3170.2,3169.1,0.02905966]
[1767828392490,3.98039535,3170.2,3169.2,0.63401988]
[1767828392686,0.002,3170.8,3169.3,1.88436796]
[1767828392887,0.826,3170.7,3169.4,0.0290569]
[1767828393087,0.826,3170.7,3169.5,1.88436796]
[1767828393309,0.826,3170.7,3169.6,1.91342475]
[1767828393575,2.77440706,3170.7,3169.7,0.22041046]
[1767828393797,0.826,3170.7,3169.7,0.02906799]
[1767828394000,0.826,3170.7,3169.5,1.88436796]
[1767828394201,0.826,3170.7,3169.6,6.34147319]
[1767828394399,0.826,3170.7,3169.6,6.30994446]
[1767828394706,0.826,3170.7,3169.7,1.13493737]
[1767828395528,0.002,3171.1,3170.1,1.88436796]
[1767828395681,0.826,3170.9,3170.1,1.88436796]
[1767828396195,0.826,3170.9,3169.9,3.15467364]
[1767828396407,0.826,3170.9,3170.0,0.35016788]
[1767828398540,0.826,3170.9,3170.1,3.15447462]
[1767828398741,0.002,3171.8,3170.5,1.88436796]
[1767828399030,0.826,3171.4,3170.3,1.88436796]
[1767828399229,0.826,3171.7,3170.9,0.01991657]
[1767828399627,0.002,3171.8,3170.9,0.01991657]
[1767828399935,0.002,3171.8,3170.9,1.90428453]
[1767828400133,0.002,3171.8,3171.0,2.07479641]
[1767828400627,0.002,3171.8,3171.1,6.30695972]
[1767828402503,1.94622227,3172.4,3171.1,6.30695972]
[1767828402702,1.94622227,3172.4,3171.1,3.15347986]
[1767828403004,1.94622227,3172.4,3171.2,0.33439083]
[1767828404141,1.94840706,3173.0,3171.4,1.88436796]
[1767828404513,1.94840706,3172.9,3171.5,8.19053222]
[1767828404704,1.94840706,3172.9,3171.5,9.01753222]
[1767828405402,1.94840706,3172.9,3171.6,0.827]
[1767828405708,1.94840706,3172.9,3171.7,0.71331643]
[1767828406701,3.15179021,3172.8,3171.8,3.1527839]
[1767828406911,0.002,3173.1,3171.9,1.88436796]
[1767828407541,0.002,3173.1,3171.8,12.6111356]
[1767828407542,2.77440706,3174.0,3172.5,1.88436796]
[1767828407742,2.77440706,3174.0,3172.6,1.0154368]
[1767828407903,5.09850943,3174.5,3172.7,1.88436796]
[1767828408107,1.94840706,3174.4,3172.7,1.88436796]
[1767828408542,1.94840706,3174.4,3172.6,0.1884368]
[1767828408708,1.94840706,3174.4,3172.3,0.827]
[1767828408908,2.01418535,3174.2,3172.4,6.30437522]
[1767828409118,2.01418535,3174.0,3172.4,6.30437522]
[1767828410534,2.01418535,3173.8,3172.4,6.30437522]
[1767828410843,2.01418535,3173.8,3171.8,1.91699271]
[1767828411043,2.01418535,3173.8,3172.1,0.826]
[1767828411248,2.01418535,3173.8,3172.0,3.15255119]
[1767828411418,2.01418535,3173.8,3172.0,3.97855119]
[1767828411618,2.01418535,3173.8,3172.0,0.826]
[1767828411805,2.01418535,3173.6,3171.9,3.1526435]
[1767828412010,2.01418535,3173.4,3171.9,3.1526435]
[1767828412637,2.01418535,3173.2,3171.9,3.1526435]
[1767828413223,2.01418535,3173.7,3172.0,1.94071969]
[1767828413421,2.01418535,3173.6,3172.1,1.13987322]
[1767828413628,2.01418535,3173.6,3172.2,0.03152386]
[1767828413823,2.01418535,3173.6,3172.3,0.826]
[1767828414147,0.002,3173.3,3172.4,0.03152187]
[1767828414848,0.002,3173.3,3172.5,6.3041765]
[1767828415047,0.002,3173.6,3172.6,2.55056255]
[1767828416017,0.002,3173.6,3172.7,0.826]
[1767828417352,0.002,3173.6,3172.8,6.30358042]
[1767828417523,0.002,3173.6,3172.8,3.15179021]
[1767828417729,0.002,3173.6,3172.9,0.826]
[1767828418157,0.002,3173.6,3172.8,4.03721225]
[1767828419478,0.002,3173.6,3172.8,7.18900246]
[1767828419647,0.002,3173.6,3172.8,4.03721225]
[1767828420370,2.01618535,3173.6,3172.8,0.88542204]
[1767828420539,2.01618535,3173.6,3172.7,0.826]
[1767828420738,2.01618535,3173.6,3172.8,6.30355818]
[1767828420944,2.01618535,3173.6,3172.8,3.15176797]
[1767828421342,2.01618535,3173.6,3172.2,1.91699271]
[1767828421641,2.01418535,3173.4,3172.3,0.826]
[1767828421848,2.01418535,3173.4,3172.4,0.826]
[1767828422664,0.002,3173.6,3172.4,2.64536606]
[1767828423021,1.93518102,3173.5,3172.5,0.26453661]
[1767828423140,1.93518102,3173.5,3172.1,0.826]
[1767828423932,1.93518102,3173.3,3172.2,3.15238635]
[1767828424137,1.93518102,3173.3,3172.2,6.3047727]
[1767828424463,1.93518102,3173.3,3172.2,7.01784997]
[1767828424840,1.93518102,3173.3,3172.2,3.86546362]
[1767828426141,0.002,3173.6,3172.1,3.97846302]
[1767828426142,1.93518102,3173.1,3172.3,0.001]
[1767828426489,1.93518102,3173.1,3172.1,0.826]
[1767828426490,1.93518102,3173.1,3171.5,3.15300764]
[1767828426990,1.93518102,3173.1,3171.7,3.15283272]
[1767828427297,1.93518102,3173.1,3171.6,3.15298019]
[1767828427502,1.93518102,3173.1,3171.7,3.15280699]
[1767828427796,1.93518102,3172.9,3171.7,3.15280699]
[1767828427957,1.93518102,3172.9,3171.6,3.15293896]
[1767828428291,1.93518102,3172.7,3171.6,3.15293896]
[1767828428508,1.93518102,3172.7,3169.8,0.09459545]
[1767828428509,1.1810393,3170.1,3169.2,1.90668219]
[1767828428655,1.84450622,3171.0,3169.4,1.90668219]
[1767828428854,0.825,3170.9,3169.5,1.9382329]
[1767828429062,0.825,3170.9,3169.5,1.90668219]
[1767828429276,1.84450622,3170.0,3168.2,2.01897818]
[1767828429456,1.84450622,3170.0,3167.3,2.00127764]
[1767828429457,0.825,3169.9,3168.3,1.90668219]
[1767828429658,0.26695062,3169.8,3168.4,0.22222989]
[1767828429889,0.26695062,3169.8,3168.4,0.19066822]
[1767828430088,6.3097454,3169.7,3168.4,0.19066822]
[1767828430895,6.3097454,3169.7,3168.3,0.826]
[1767828431281,6.3097454,3169.7,3168.1,3.15646533]
[1767828431580,1.84450622,3169.6,3167.9,0.85756665]
[1767828431782,1.84450622,3169.6,3167.9,2.73268219]
[1767828432169,11.30972153,3169.5,3167.9,2.73268219]
[1767828432399,2.55774469,3169.4,3167.9,1.09926822]
[1767828432598,0.826,3169.3,3167.9,0.826]
[1767828433395,2.55774469,3169.4,3167.9,0.826]
[1767828433595,0.826,3169.3,3167.9,3.98265193]
[1767828433786,0.826,3169.3,3167.9,0.826]
[1767828434296,6.31074088,3169.2,3167.9,0.826]
[1767828434498,6.31074088,3169.2,3168.0,0.39827625]
[1767828434994,6.31074088,3169.2,3167.9,0.826]
[1767828438038,0.826,3169.3,3168.0,1.90668219]
[1767828438201,6.30914826,3170.0,3168.1,1.90668219]
[1767828438496,2.67050622,3170.1,3168.3,1.90668219]
[1767828439185,0.03248502,3170.0,3168.3,1.90668219]
[1767828439385,0.27029912,3169.9,3168.4,0.8220415]
[1767828439588,0.27029912,3169.9,3168.5,1.90668219]
[1767828439791,2.67050622,3170.1,3168.6,1.90668219]
[1767828440686,6.30914826,3170.0,3168.6,5.06263361]
[1767828441872,6.30914826,3170.0,3168.7,1.90668219]
[1767828442076,3.15377822,3170.8,3168.7,1.90668219]
[1767828442295,3.15377822,3170.8,3168.9,1.90668219]
[1767828442508,6.30656196,3171.3,3169.3,1.90668219]
[1767828442706,6.30656196,3171.3,3169.5,1.90668219]
[1767828442884,9.45984294,3171.3,3169.5,1.90668219]
[1767828443700,0.03248502,3171.2,3169.5,1.90668219]
[1767828444014,0.03248502,3171.2,3169.6,0.27336822]
[1767828444724,6.30695972,3171.1,3169.7,3.1548727]
[1767828444886,0.03248502,3171.0,3169.7,3.1548727]
[1767828445076,6.30695972,3171.1,3169.7,3.1548727]
[1767828445594,0.03248502,3171.0,3169.7,3.1548727]
[1767828445926,0.03248502,3171.0,3169.6,4.25533951]
[1767828445927,0.66642949,3171.0,3169.8,0.74102122]
[1767828446107,0.66642949,3171.0,3169.6,4.25530825]
[1767828446774,6.30735752,3170.9,3169.6,4.25530825]
[1767828447088,0.03248502,3170.8,3169.6,4.25530825]
[1767828447610,0.03248502,3170.8,3169.6,3.42830825]
[1767828448300,0.03248502,3170.8,3169.6,0.27336822]
[1767828448611,0.61319524,3170.7,3169.4,3.15510124]
[1767828448794,0.03248502,3170.6,3169.4,3.15510124]
[1767828449316,3.15407664,3170.5,3169.3,3.15527088]
[1767828450389,6.30815328,3170.5,3169.3,3.15527088]
[1767828450589,0.63394447,3170.4,3169.3,3.15527088]
[1767828451204,3.78815183,3170.4,3169.3,6.31054176]
[1767828451405,3.78815183,3170.4,3169.3,3.15527088]
[1767828451605,3.15420736,3170.4,3169.3,3.15527088]
[1767828451990,0.002,3170.2,3169.3,6.31054176]
[1767828452210,0.002,3170.2,3169.3,3.15527088]
[1767828452922,0.002,3170.2,3169.3,6.31054176]
[1767828453588,0.002,3170.2,3169.2,3.98232455]
[1767828454225,0.002,3170.2,3169.2,3.72819719]
[1767828454918,0.002,3170.2,3169.1,1.90668219]
[1767828455304,1.89129419,3170.2,3168.9,0.001]
[1767828455512,6.30894924,3170.1,3168.9,0.001]
[1767828456621,6.30894924,3170.1,3168.9,3.15666915]
[1767828457618,3.15447462,3170.1,3168.9,6.3123383]
[1767828457821,3.6590515,3170.1,3168.9,9.39129056]
[1767828458930,6.81352612,3170.1,3168.9,9.39129056]
[1767828459091,3.6590515,3170.1,3168.9,9.39129056]
[1767828459800,6.81352612,3170.1,3168.9,9.39129056]
[1767828460000,6.81352612,3170.1,3168.9,8.17546214]
[1767828460900,8.70282031,3170.1,3168.9,8.17546214]
[1767828461124,8.70282031,3170.1,3168.9,5.01979299]
[1767828461315,8.70282031,3170.1,3168.9,8.17546214]
[1767828462731,1.92177921,3170.0,3168.9,5.01979299]
[1767828462909,0.74256283,3169.9,3168.9,5.01979299]
[1767828463515,0.74256283,3169.9,3168.9,1.86412384]
[1767828463721,0.74256283,3169.9,3168.9,5.01974689]
[1767828463917,0.74256283,3169.9,3168.9,1.86412384]
[1767828464228,1.92177921,3169.8,3168.9,0.001]
[1767828464440,0.2664342,3169.7,3168.9,0.001]
[1767828465114,3.15497223,3169.6,3168.9,0.001]
[1767828465311,6.34242948,3169.6,3168.9,0.001]
[1767828465508,6.30994446,3169.6,3169.2,0.001]
[1767828465712,8.19923865,3169.6,3168.9,0.001]
[1767828466012,5.89083371,3169.6,3168.9,0.001]
[1767828468463,0.002,3169.8,3168.9,2.74364298]
[1767828468741,0.002,3169.8,3169.0,1.91564298]
[1767828471047,0.002,3169.8,3169.2,1.91564298]
[1767828473229,0.002,3169.8,3169.3,1.91564298]
[1767828476032,0.002,3169.8,3169.2,3.15529947]
[1767828476234,0.002,3169.8,3169.2,5.07094245]
[1767828477855,0.002,3169.8,3169.2,1.91564298]
[1767828478072,0.002,3169.8,3169.1,0.827]
[1767828478926,0.002,3169.8,3169.1,5.89805614]
[1767828479331,0.002,3169.5,3169.1,5.89805614]
[1767828479528,0.002,3169.5,3169.2,3.15534257]
[1767828480061,0.002,3169.5,3169.1,5.89806181]
[1767828480367,0.002,3169.8,3169.5,1.91564298]
[1767828480752,0.002,3169.8,3169.2,1.91564298]
[1767828481566,0.002,3169.8,3169.2,5.07098694]
[1767828483030,0.002,3169.8,3169.2,1.91564298]
[1767828483469,0.002,3169.8,3169.2,5.07098873]
[1767828484164,0.002,3169.8,3169.2,6.06687689]
[1767828484844,0.002,3170.2,3169.8,1.87799251]
[1767828485450,3.15384494,3170.8,3169.2,10.46197479]
[1767828485451,0.002,3172.8,3171.7,1.87799251]
[1767828485756,0.002,3172.8,3171.9,1.87799251]
[1767828485933,0.002,3172.8,3172.0,2.70499251]
[1767828486563,0.002,3172.8,3172.1,1.87799251]
[1767828486861,0.002,3172.8,3172.2,8.18276521]
[1767828487962,0.002,3172.8,3172.3,0.827]
[1767828489134,0.002,3172.8,3172.4,6.30437522]
[1767828489336,0.002,3172.8,3172.4,3.15218761]
[1767828489632,0.002,3172.8,3172.5,0.827]
[1767828490769,6.767e-05,3174.9,3173.1,1.98594191]
[1767828490953,6.767e-05,3174.9,3173.8,1.98594191]
[1767828491267,6.767e-05,3174.9,3174.0,1.98594191]
[1767828492735,6.767e-05,3174.9,3174.1,0.827]
[1767828493055,6.767e-05,3174.9,3174.2,0.827]
[1767828494067,6.767e-05,3174.9,3174.3,0.827]
[1767828495060,6.767e-05,3174.9,3174.4,3.15020161]
[1767828496473,6.767e-05,3174.9,3174.4,6.30040322]
[1767828497375,6.767e-05,3174.9,3173.6,1.98594191]
[1767828497672,6.767e-05,3174.9,3174.0,3.15057257]
[1767828497838,6.767e-05,3174.9,3173.9,3.15065952]
[1767828498042,6.767e-05,3174.9,3173.7,0.826]
[1767828498443,6.767e-05,3174.9,3174.0,3.15053531]
[1767828499176,6.767e-05,3174.9,3174.1,0.826]
[1767828500584,0.62997586,3174.9,3174.1,0.826]
[1767828500761,6.767e-05,3174.9,3174.1,5.96244126]
[1767828501580,6.767e-05,3174.9,3173.7,3.15088649]
[1767828501749,6.767e-05,3174.9,3173.8,3.976785]
[1767828503284,6.767e-05,3174.9,3173.9,0.826]
[1767828503486,1.99597417,3174.9,3173.9,0.826]
[1767828503894,1.99597417,3174.9,3173.5,3.15107668]
[1767828504083,1.99597417,3174.9,3173.6,0.826]
[1767828504284,1.99597417,3174.9,3173.7,0.826]
[1767828504485,0.002,3174.6,3173.7,0.826]
[1767828505625,0.002,3174.6,3173.4,5.13709592]
[1767828505803,1.9959065,3174.5,3172.9,1.98594191]
[1767828506001,1.9959065,3174.5,3172.9,5.1376074]
[1767828506301,1.9959065,3174.5,3172.9,5.9636074]
[1767828506465,1.9959065,3174.3,3172.9,5.1376074]
[1767828506659,0.825,3174.4,3172.9,5.1376074]
[1767828506660,8.2969052,3174.1,3172.9,5.1376074]
[1767828507062,8.2969052,3174.1,3172.8,3.15175936]
[1767828507292,8.2969052,3174.1,3172.9,0.826]
[1767828508306,1.9959065,3174.0,3172.7,3.15184631]
[1767828508464,1.9959065,3174.0,3172.8,0.826]
[1767828508667,8.2975008,3173.8,3172.6,2.81194191]
[1767828509008,8.2975008,3173.8,3172.6,0.826]
[1767828509391,1.9959065,3173.7,3172.6,0.826]
[1767828509744,1.9959065,3173.7,3172.6,3.97795554]
[1767828509911,1.9959065,3173.7,3172.6,3.15198283]
[1767828510235,1.9959065,3173.7,3172.6,4.60839939]
[1767828510634,1.9959065,3173.7,3172.6,1.45641656]
[1767828511138,6.30199142,3173.6,3172.6,1.45641656]
[1767828511510,6.30199142,3173.6,3172.4,3.15212995]
[1767828511706,8.29789792,3173.6,3172.5,0.826]
[1767828512338,8.29789792,3173.6,3172.3,2.01969911]
[1767828512490,8.29789792,3173.6,3172.4,0.826]
[1767828513396,6.30199142,3173.6,3172.4,0.826]
[1767828513642,2.5829582,3173.5,3172.4,0.826]
[1767828513940,2.5829582,3173.5,3172.5,0.826]
[1767828514127,2.5829582,3173.5,3172.3,5.1719112]
[1767828514299,2.5829582,3173.5,3172.4,0.826]
[1767828515798,3.1511943,3173.4,3172.4,0.826]
[1767828515999,3.1511943,3173.4,3172.5,0.6029503]
[1767828516413,3.1511943,3173.4,3172.4,5.9978458]
[1767828516626,3.1511943,3173.4,3172.5,2.01969911]
[1767828516825,3.1511943,3173.4,3172.5,2.84569911]
[1767828517240,3.1511943,3173.4,3172.7,0.001]
[1767828517444,6.3023886,3173.4,3172.7,0.001]
[1767828517674,8.25518586,3173.4,3172.7,0.001]
[1767828524518,1.95279726,3173.3,3172.7,0.001]
[1767828526630,6.30278582,3173.2,3172.7,0.001]
[1767828527142,8.25558308,3173.2,3172.2,2.01969911]
[1767828527349,8.25558308,3173.2,3172.2,2.22166902]
[1767828528581,3.15055089,3174.1,3172.2,2.01969911]
[1767828528582,5.10438881,3173.0,3172.2,2.01969911]
[1767828528885,8.25598036,3173.0,3172.8,0.001]
[1767828529092,8.25598036,3173.0,3172.2,2.01969911]
[1767828529694,1.95279726,3172.9,3171.9,2.01969911]
[1767828529886,1.95279726,3172.9,3172.0,2.01969911]
[1767828530876,1.95279726,3172.8,3172.0,2.01969911]
[1767828531076,3.15178398,3172.9,3171.9,0.59985619]
[1767828531077,3.15178398,3172.9,3171.9,2.01969911]
[1767828531376,3.15178398,3172.9,3171.8,0.826]
[1767828531377,3.15178398,3172.9,3172.0,2.01969911]
[1767828532152,6.30356796,3172.9,3172.0,2.01969911]
[1767828532349,6.30356796,3172.9,3172.0,2.61954509]
[1767828532988,6.30356796,3172.9,3172.0,0.59984598]
[1767828532989,1.95279726,3172.8,3172.0,0.59984598]
[1767828533294,1.95279726,3172.8,3171.7,2.01969911]
[1767828534961,1.95279726,3172.6,3171.4,5.17284211]
[1767828535283,1.95279726,3172.6,3171.6,2.01969911]
[1767828536661,6.3041765,3172.5,3171.6,2.01969911]
[1767828536966,8.25697376,3172.5,3171.6,2.01969911]
[1767828537176,8.25697376,3172.5,3171.6,2.30426902]
[1767828537986,5.10488551,3172.5,3171.6,2.30426902]
[1767828538355,8.25697376,3172.5,3171.6,2.30426902]
[1767828539394,5.10458747,3172.8,3171.7,2.01969911]
[1767828539690,8.25637768,3172.8,3171.7,2.01969911]
[1767828540261,8.25637768,3172.8,3171.9,2.02069911]
[1767828541490,6.3039778,3172.6,3171.9,2.02069911]
[1767828541693,8.25677506,3172.6,3171.9,0.001]
[1767828542072,2.04216466,3172.5,3171.9,0.001]
[1767828543266,5.19410694,3172.7,3171.9,1.93576685]
[1767828543471,6.3039778,3172.6,3171.9,1.93576685]
[1767828544513,3.1519889,3172.6,3171.9,1.93576685]
[1767828544673,6.3039778,3172.6,3171.9,1.93576685]
[1767828546206,0.826,3173.1,3171.9,1.93576685]
[1767828546404,0.826,3173.1,3170.0,1.93476685]
[1767828546405,5.25948248,3172.0,3170.0,1.93476685]
[1767828546699,2.04216466,3172.0,3170.7,1.93476685]
[1767828546876,2.04216466,3172.0,3170.1,4.01199134]